Workbook

Sheet MAIN
S2: vent apparent | AD2: AWA
C3: Wind(kn) | D3: Up Angle | E3: VMG | F3: V@UA | G3: 52 | H3: 60 | I3: 70 | J3: 90 | K3: 105 | L3: 120 | M3: 135 | N3: 150 | O3: 180 | P3: V@DA | Q3: DA | S3: UA | T3: 52 | U3: 60 | V3: 75 | W3: 90 | X3: 110 | Y3: 120 | Z3: 135 | AA3: 150 | AB3: DA | AD3: UA | AE3: 52 | AF3: 60 | AG3: 75 | AH3: 90 | AI3: 110 | AJ3: 120 | AK3: 135 | AL3: 150 | AM3: DA
C4: 6 | D4: 44.4 | E4: 2.681 | F4: 3.751 | G4: 4.178 | H4: 4.506 | I4: 4.753 | J4: 5.022 | K4: 4.836 | L4: 4.396 | M4: 3.84 | N4: 3.251 | O4: 2.65 | P4: 3.424 | Q4: 145.6 | S4: =SQRT(SUMSQ(($C4*SIN(D4/180*PI())),(F4+$C4*COS(D4/180*PI())))) -> 9.068067339 | T4: =SQRT(SUMSQ(($C4*SIN(G$3/180*PI())),(G4+$C4*COS(G$3/180*PI())))) -> 9.182727684 | U4: 9.129076405 | V4: 8.837333868 | W4: 7.824351986 | X4: 6.660863996 | Y4: 5.380410393 | Z4: 4.261703829 | AA4: 3.57541857 | AB4: =SQRT(SUMSQ(($C4*SIN(Q4/180*PI())),(P4+$C4*COS(Q4/180*PI())))) -> 3.717729493 | AD4: =DEGREES(ACOS((F4+$C4*COS(D4/180*PI()))/S4)) -> 27.57704745 | AE4: =DEGREES(ACOS((G4+$C4*COS(G$3/180*PI()))/T4)) -> 30.98988337 | AF4: 34.69355842 | AG4: 39.64231287 | AH4: 50.07066797 | AI4: 60.46916614 | AJ4: 74.96199124 | AK4: 95.42132264 | AL4: 122.9587356 | AM4: =DEGREES(ACOS((P4+$C4*COS(Q4/180*PI()))/AB4)) -> 114.2455951
C5: 8 | D5: 44.6 | E5: 3.334 | F5: 4.683 | G5: 5.161 | H5: 5.448 | I5: 5.629 | J5: 5.837 | K5: 5.736 | L5: 5.446 | M5: 4.902 | N5: 4.157 | O5: 3.435 | P5: 4.305 | Q5: 146.8 | S5: =SQRT(SUMSQ(($C5*SIN(D5/180*PI())),(F5+$C5*COS(D5/180*PI())))) -> 11.80174464 | T5: 11.89431726 | U5: 11.71600205 | V5: 11.24674812 | W5: 9.903058568 | X5: 8.552679072 | Y5: 7.077493624 | Z5: 5.70699614 | AA5: 4.866165569 | AB5: =SQRT(SUMSQ(($C5*SIN(Q5/180*PI())),(P5+$C5*COS(Q5/180*PI())))) -> 4.989659216 | AD5: 28.42223853 | AE5: 32.00601086 | AF5: 36.25253593 | AG5: 41.94516516 | AH5: 53.88457488 | AI5: 64.62296452 | AJ5: 78.21091242 | AK5: 97.60068409 | AL5: 124.7142484 | AM5: =DEGREES(ACOS((P5+$C5*COS(Q5/180*PI()))/AB5)) -> 118.6079164
C6: 10 | D6: 42.1 | E6: 4.029550034 | F6: 5.430837247 | G6: 6.128702758 | H6: 6.472491909 | I6: 6.734006734 | J6: 6.92440854 | K6: 6.952491309 | L6: 6.836308393 | M6: 6.4366172 | N6: 5.667506297 | O6: 4.8 | P6: 5.85288772 | Q6: 147 | S6: 14.49430902 | T6: 14.59538013 | U6: 14.37421548 | V6: 13.83510628 | W6: 12.1633644 | X6: 10.59945245 | Y6: 8.852797779 | Z6: 7.099473754 | AA6: 5.827223956 | AB6: 6.006946087 | AD6: 27.5514363 | AE6: 32.67711991 | AF6: 37.04810485 | AG6: 42.78184834 | AH6: 55.29968918 | AI6: 65.68532593 | AJ6: 78.02839556 | AK6: 95.12712682 | AL6: 120.902611 | AM6: 114.9492081
C7: 12 | D7: 42.3 | E7: 4.438416965 | F7: 6.00085231 | G7: 6.654343808 | H7: 6.895230799 | I7: 7.083825266 | J7: 7.290400972 | K7: 7.30964467 | L7: 7.227464365 | M7: 6.982156711 | N7: 6.353688669 | O7: 5.25 | P7: 6.516500411 | Q7: 147.6 | S7: 16.92726309 | T7: 16.92938412 | U7: 16.56161156 | V7: 15.88483688 | W7: 14.04100945 | X7: 12.32987831 | Y7: 10.46454341 | Z7: 8.617388453 | AA7: 7.232594321 | AB7: 7.376669915 | AD7: 28.49675816 | AE7: 33.95648373 | AF7: 38.86544419 | AG7: 45.22506785 | AH7: 58.71992092 | AI7: 70.06551246 | AJ7: 83.26384315 | AK7: 100.0454461 | AL7: 123.9446033 | AM7: 119.3483019
C8: 14 | D8: 40.9 | E8: 4.804484185 | F8: 6.356369827 | G8: 6.963249516 | H8: 7.149950348 | I8: 7.315586263 | J8: 7.540846251 | K8: 7.623888183 | L8: 7.53611053 | M8: 7.30964467 | N8: 6.804006804 | O8: 5.5 | P8: 5.9329098 | Q8: 174.3 | S8: 19.25951699 | T8: 19.09248462 | U8: 18.63386956 | V8: 17.87668824 | W8: 15.90170941 | X8: 14.10226443 | Y8: 12.13620264 | Z8: 10.23265969 | AA8: 8.792389429 | AB8: 8.117839633 | AD8: 28.42056043 | AE8: 35.29784067 | AF8: 40.59155195 | AG8: 47.38446439 | AH8: 61.69167887 | AI8: 73.52049909 | AJ8: 87.46816443 | AK8: 104.6608226 | AL8: 127.2366439 | AM8: 170.1373716
C9: 16 | D9: 39.7 | E9: 4.998611497 | F9: 6.496769415 | G9: 7.134363853 | H9: 7.323026851 | I9: 7.520367662 | J9: 7.662835249 | K9: 7.978723404 | L9: 7.872293899 | M9: 7.606169449 | N9: 7.104795737 | O9: 6 | P9: 6.507819727 | Q9: 175.9 | S9: 21.40475603 | T9: 21.15311898 | U9: 20.65902108 | V9: 19.87117714 | W9: 17.74032255 | X9: 15.92415049 | Y9: 13.85699494 | Z9: 11.90570644 | AA9: 10.46824949 | AB9: 9.520212387 | AD9: 28.5207696 | AE9: 36.58703298 | AF9: 42.12261364 | AG9: 49.16779361 | AH9: 64.40897179 | AI9: 76.05480793 | AJ9: 90.52804553 | AK9: 108.1441381 | AL9: 130.1627376 | AM9: 173.0986003
C10: 20 | D10: 39.3 | E10: 5.116543491 | F10: 6.611886312 | G10: 7.242003621 | H10: 7.476635514 | I10: 7.872293899 | J10: 7.973421927 | K10: 8.526764567 | L10: 8.618625808 | M10: 8.279668813 | N10: 7.567794829 | O10: 6.8 | P10: 7.186996873 | Q10: 178.4 | S10: 25.46328298 | T10: 25.11556334 | U10: 24.60554386 | V10: 23.86780959 | W10: 21.53080252 | X10: 19.60689041 | Y10: 17.37550559 | Z10: 15.30909916 | AA10: 13.96837198 | AB10: 12.81737622 | AD10: 29.83378977 | AE10: 38.86650025 | AF10: 44.74292766 | AG10: 51.9445177 | AH10: 68.264259 | AI10: 80.16113583 | AJ10: 94.55989742 | AK10: 112.5159139 | AL10: 134.2827443 | AM10: 177.5029232
E13: Vent Réel | O13: vent apparent
E14: V@UA | F14: 52 | G14: 60 | H14: 75 | I14: 90 | J14: 110 | K14: 120 | L14: 135 | M14: 150 | N14: VMG180 | O14: 150 | P14: 135 | Q14: 120 | R14: 110 | S14: 90 | T14: 75 | U14: 60 | V14: 52 | W14: V@UA
D15: 6 | E15: =F4*SIN(D4/180*PI()) -> 2.62443719 | F15: =G4*SIN(G$3/180*PI()) -> 3.292308929 | G15: =H4*SIN(H$3/180*PI()) -> 3.902310469 | H15: 4.466359027 | I15: 5.022 | J15: 4.671217296 | K15: 3.807047675 | L15: 2.71529004 | M15: 1.6255 | N15: 0 | O15: =-N4*SIN((O$14/180*PI())-ATAN((N4*SIN(O$14/180*PI())/(C4+N4*COS(O$14/180*PI()))))) -> -2.727792512 | P15: =-M4*SIN((P$14/180*PI())-ATAN((M4*SIN(P$14/180*PI())/(C4+M4*COS(P$14/180*PI()))))) -> -3.822823193 | Q15: =-L4*SIN((Q$14/180*PI())-ATAN((L4*SIN(Q$14/180*PI())/(C4+L4*COS(Q$14/180*PI()))))) -> -4.245454228 | R15: =-K4*SIN((R$14/180*PI())-ATAN((K4*SIN(R$14/180*PI())/(C4+K4*COS(R$14/180*PI()))))) -> -4.336224011 | S15: =-J4*SIN((S$14/180*PI())-ATAN((J4*SIN(S$14/180*PI())/(C4+J4*COS(S$14/180*PI()))))) -> -3.851053743 | T15: =-I4*SIN((T$14/180*PI())-ATAN((I4*SIN(T$14/180*PI())/(C4+I4*COS(T$14/180*PI()))))) -> -3.216280124 | U15: =-H4*SIN((U$14/180*PI())-ATAN((H4*SIN(U$14/180*PI())/(C4+H4*COS(U$14/180*PI()))))) -> -2.564757022 | V15: =-G4*SIN((V$14/180*PI())-ATAN((G4*SIN(V$14/180*PI())/(C4+G4*COS(V$14/180*PI()))))) -> -2.151196709 | W15: =-F4*SIN((D4/180*PI())-ATAN((F4*SIN(D4/180*PI())/(C4+F4*COS(D4/180*PI()))))) -> -1.736491642
E16: =E4 -> 2.681 | F16: =G4*COS(G$3/180*PI()) -> 2.572233644 | G16: =H4*COS(H$3/180*PI()) -> 2.253 | H16: 1.625621741 | I16: 3.07634777e-16 | J16: -1.251648902 | K16: -2.198 | L16: -2.71529004 | M16: -2.815448588 | N16: =-O4 -> -2.65 | O16: =N4*COS((O$14/180*PI())-ATAN((N4*SIN(O$14/180*PI())/(C4+N4*COS(O$14/180*PI()))))) -> -1.768657404 | P16: =M4*COS((P$14/180*PI())-ATAN((M4*SIN(P$14/180*PI())/(C4+M4*COS(P$14/180*PI()))))) -> -0.3627986131 | Q16: =L4*COS((Q$14/180*PI())-ATAN((L4*SIN(Q$14/180*PI())/(C4+L4*COS(Q$14/180*PI()))))) -> 1.140585114 | R16: =K4*COS((R$14/180*PI())-ATAN((K4*SIN(R$14/180*PI())/(C4+K4*COS(R$14/180*PI()))))) -> 2.141041177 | S16: =J4*COS((S$14/180*PI())-ATAN((J4*SIN(S$14/180*PI())/(C4+J4*COS(S$14/180*PI()))))) -> 3.223331983 | T16: =I4*COS((T$14/180*PI())-ATAN((I4*SIN(T$14/180*PI())/(C4+I4*COS(T$14/180*PI()))))) -> 3.499507274 | U16: =H4*COS((U$14/180*PI())-ATAN((H4*SIN(U$14/180*PI())/(C4+H4*COS(U$14/180*PI()))))) -> 3.70486942 | V16: =G4*COS((V$14/180*PI())-ATAN((G4*SIN(V$14/180*PI())/(C4+G4*COS(V$14/180*PI()))))) -> 3.581624872 | W16: =F4*COS((D4/180*PI())-ATAN((F4*SIN(D4/180*PI())/(C4+F4*COS(D4/180*PI()))))) -> 3.324845527
D17: 8 | E17: =F5*SIN(D5/180*PI()) -> 3.288182747 | F17: =G5*SIN(G$3/180*PI()) -> 4.066923499 | G17: 4.7181064 | H17: 5.289529762 | I17: 5.837 | J17: 5.54055054 | K17: 4.716374349 | L17: 3.466237441 | M17: 2.0785 | N17: 0 | O17: =-N5*SIN((O$14/180*PI())-ATAN((N5*SIN(O$14/180*PI())/(C5+N5*COS(O$14/180*PI()))))) -> -3.417064168 | P17: =-M5*SIN((P$14/180*PI())-ATAN((M5*SIN(P$14/180*PI())/(C5+M5*COS(P$14/180*PI()))))) -> -4.858930837 | Q17: =-L5*SIN((Q$14/180*PI())-ATAN((L5*SIN(Q$14/180*PI())/(C5+L5*COS(Q$14/180*PI()))))) -> -5.331123812 | R17: =-K5*SIN((R$14/180*PI())-ATAN((K5*SIN(R$14/180*PI())/(C5+K5*COS(R$14/180*PI()))))) -> -5.327494473 | S17: =-J5*SIN((S$14/180*PI())-ATAN((J5*SIN(S$14/180*PI())/(C5+J5*COS(S$14/180*PI()))))) -> -4.715310899 | T17: =-I5*SIN((T$14/180*PI())-ATAN((I5*SIN(T$14/180*PI())/(C5+I5*COS(T$14/180*PI()))))) -> -3.987484236 | U17: =-H5*SIN((U$14/180*PI())-ATAN((H5*SIN(U$14/180*PI())/(C5+H5*COS(U$14/180*PI()))))) -> -3.22164942 | V17: =-G5*SIN((V$14/180*PI())-ATAN((G5*SIN(V$14/180*PI())/(C5+G5*COS(V$14/180*PI()))))) -> -2.735372472 | W17: =-F5*SIN((D5/180*PI())-ATAN((F5*SIN(D5/180*PI())/(C5+F5*COS(D5/180*PI()))))) -> -2.228946887
E18: =E5 -> 3.334 | F18: =G5*COS(G$3/180*PI()) -> 3.177428874 | G18: 2.724 | H18: 1.925231387 | I18: 3.575595766e-16 | J18: -1.484586043 | K18: -2.723 | L18: -3.466237441 | M18: -3.600067604 | N18: =-O5 -> -3.435 | O18: =N5*COS((O$14/180*PI())-ATAN((N5*SIN(O$14/180*PI())/(C5+N5*COS(O$14/180*PI()))))) -> -2.367344815 | P18: =M5*COS((P$14/180*PI())-ATAN((M5*SIN(P$14/180*PI())/(C5+M5*COS(P$14/180*PI()))))) -> -0.648378839 | Q18: =L5*COS((Q$14/180*PI())-ATAN((L5*SIN(Q$14/180*PI())/(C5+L5*COS(Q$14/180*PI()))))) -> 1.112670165 | R18: =K5*COS((R$14/180*PI())-ATAN((K5*SIN(R$14/180*PI())/(C5+K5*COS(R$14/180*PI()))))) -> 2.12591125 | S18: =J5*COS((S$14/180*PI())-ATAN((J5*SIN(S$14/180*PI())/(C5+J5*COS(S$14/180*PI()))))) -> 3.440408715 | T18: =I5*COS((T$14/180*PI())-ATAN((I5*SIN(T$14/180*PI())/(C5+I5*COS(T$14/180*PI()))))) -> 3.97311093 | U18: =H5*COS((U$14/180*PI())-ATAN((H5*SIN(U$14/180*PI())/(C5+H5*COS(U$14/180*PI()))))) -> 4.393367617 | V18: =G5*COS((V$14/180*PI())-ATAN((G5*SIN(V$14/180*PI())/(C5+G5*COS(V$14/180*PI()))))) -> 4.376489282 | W18: =F5*COS((D5/180*PI())-ATAN((F5*SIN(D5/180*PI())/(C5+F5*COS(D5/180*PI()))))) -> 4.118529443
D19: 10 | E19: =F6*SIN(D6/180*PI()) -> 3.640977854 | F19: =G6*SIN(G$3/180*PI()) -> 4.829483679 | G19: 5.605342419 | H19: 6.327896436 | I19: 6.92440854 | J19: 6.715590913 | K19: 5.920416737 | L19: 4.55137567 | M19: 2.833753149 | N19: 0 | O19: =-N6*SIN((O$14/180*PI())-ATAN((N6*SIN(O$14/180*PI())/(C6+N6*COS(O$14/180*PI()))))) -> -4.86295562 | P19: =-M6*SIN((P$14/180*PI())-ATAN((M6*SIN(P$14/180*PI())/(C6+M6*COS(P$14/180*PI()))))) -> -6.410863436 | Q19: =-L6*SIN((Q$14/180*PI())-ATAN((L6*SIN(Q$14/180*PI())/(C6+L6*COS(Q$14/180*PI()))))) -> -6.687622246 | R19: =-K6*SIN((R$14/180*PI())-ATAN((K6*SIN(R$14/180*PI())/(C6+K6*COS(R$14/180*PI()))))) -> -6.507896171 | S19: =-J6*SIN((S$14/180*PI())-ATAN((J6*SIN(S$14/180*PI())/(C6+J6*COS(S$14/180*PI()))))) -> -5.692839834 | T19: =-I6*SIN((T$14/180*PI())-ATAN((I6*SIN(T$14/180*PI())/(C6+I6*COS(T$14/180*PI()))))) -> -4.845452619 | U19: =-H6*SIN((U$14/180*PI())-ATAN((H6*SIN(U$14/180*PI())/(C6+H6*COS(U$14/180*PI()))))) -> -3.899581461 | V19: =-G6*SIN((V$14/180*PI())-ATAN((G6*SIN(V$14/180*PI())/(C6+G6*COS(V$14/180*PI()))))) -> -3.308912571 | W19: =-F6*SIN((D6/180*PI())-ATAN((F6*SIN(D6/180*PI())/(C6+F6*COS(D6/180*PI()))))) -> -2.512005125
E20: =E6 -> 4.029550034 | F20: =G6*COS(G$3/180*PI()) -> 3.773206182 | G20: 3.236245955 | H20: 2.303165948 | I20: 4.241714212e-16 | J20: -1.799437162 | K20: -3.418154197 | L20: -4.55137567 | M20: -4.90820443 | N20: =-O6 -> -4.8 | O20: =N6*COS((O$14/180*PI())-ATAN((N6*SIN(O$14/180*PI())/(C6+N6*COS(O$14/180*PI()))))) -> -2.910719889 | P20: =M6*COS((P$14/180*PI())-ATAN((M6*SIN(P$14/180*PI())/(C6+M6*COS(P$14/180*PI()))))) -> -0.5752138626 | Q20: =L6*COS((Q$14/180*PI())-ATAN((L6*SIN(Q$14/180*PI())/(C6+L6*COS(Q$14/180*PI()))))) -> 1.418034253 | R20: =K6*COS((R$14/180*PI())-ATAN((K6*SIN(R$14/180*PI())/(C6+K6*COS(R$14/180*PI()))))) -> 2.446308 | S20: =J6*COS((S$14/180*PI())-ATAN((J6*SIN(S$14/180*PI())/(C6+J6*COS(S$14/180*PI()))))) -> 3.941954877 | T20: =I6*COS((T$14/180*PI())-ATAN((I6*SIN(T$14/180*PI())/(C6+I6*COS(T$14/180*PI()))))) -> 4.676369918 | U20: =H6*COS((U$14/180*PI())-ATAN((H6*SIN(U$14/180*PI())/(C6+H6*COS(U$14/180*PI()))))) -> 5.165889657 | V20: =G6*COS((V$14/180*PI())-ATAN((G6*SIN(V$14/180*PI())/(C6+G6*COS(V$14/180*PI()))))) -> 5.158691219 | W20: =F6*COS((D6/180*PI())-ATAN((F6*SIN(D6/180*PI())/(C6+F6*COS(D6/180*PI()))))) -> 4.814958303
D21: 12 | E21: =F7*SIN(D7/180*PI()) -> 4.038648696 | F21: =G7*SIN(G$3/180*PI()) -> 5.243694479 | G21: 5.971445037 | H21: 6.656618329 | I21: 7.290400972 | J21: 7.060574568 | K21: 6.259167745 | L21: 4.937130357 | M21: 3.176844335 | N21: 0 | O21: =-N7*SIN((O$14/180*PI())-ATAN((N7*SIN(O$14/180*PI())/(C7+N7*COS(O$14/180*PI()))))) -> -5.270879344 | P21: =-M7*SIN((P$14/180*PI())-ATAN((M7*SIN(P$14/180*PI())/(C7+M7*COS(P$14/180*PI()))))) -> -6.875118211 | Q21: =-L7*SIN((Q$14/180*PI())-ATAN((L7*SIN(Q$14/180*PI())/(C7+L7*COS(Q$14/180*PI()))))) -> -7.177571921 | R21: =-K7*SIN((R$14/180*PI())-ATAN((K7*SIN(R$14/180*PI())/(C7+K7*COS(R$14/180*PI()))))) -> -7.031093262 | S21: =-J7*SIN((S$14/180*PI())-ATAN((J7*SIN(S$14/180*PI())/(C7+J7*COS(S$14/180*PI()))))) -> -6.230663969 | T21: =-I7*SIN((T$14/180*PI())-ATAN((I7*SIN(T$14/180*PI())/(C7+I7*COS(T$14/180*PI()))))) -> -5.320318092 | U21: =-H7*SIN((U$14/180*PI())-ATAN((H7*SIN(U$14/180*PI())/(C7+H7*COS(U$14/180*PI()))))) -> -4.326713025 | V21: =-G7*SIN((V$14/180*PI())-ATAN((G7*SIN(V$14/180*PI())/(C7+G7*COS(V$14/180*PI()))))) -> -3.716870816 | W21: =-F7*SIN((D7/180*PI())-ATAN((F7*SIN(D7/180*PI())/(C7+F7*COS(D7/180*PI()))))) -> -2.863060857
E22: =E7 -> 4.438416965 | F22: =G7*COS(G$3/180*PI()) -> 4.096823126 | G22: 3.447615399 | H22: 2.422810933 | I22: 4.465911743e-16 | J22: -1.891875254 | K22: -3.613732182 | L22: -4.937130357 | M22: -5.502455795 | N22: =-O7 -> -5.25 | O22: =N7*COS((O$14/180*PI())-ATAN((N7*SIN(O$14/180*PI())/(C7+N7*COS(O$14/180*PI()))))) -> -3.547843097 | P22: =M7*COS((P$14/180*PI())-ATAN((M7*SIN(P$14/180*PI())/(C7+M7*COS(P$14/180*PI()))))) -> -1.217892406 | Q22: =L7*COS((Q$14/180*PI())-ATAN((L7*SIN(Q$14/180*PI())/(C7+L7*COS(Q$14/180*PI()))))) -> 0.847763214 | R22: =K7*COS((R$14/180*PI())-ATAN((K7*SIN(R$14/180*PI())/(C7+K7*COS(R$14/180*PI()))))) -> 1.998657734 | S22: =J7*COS((S$14/180*PI())-ATAN((J7*SIN(S$14/180*PI())/(C7+J7*COS(S$14/180*PI()))))) -> 3.785336555 | T22: =I7*COS((T$14/180*PI())-ATAN((I7*SIN(T$14/180*PI())/(C7+I7*COS(T$14/180*PI()))))) -> 4.677049903 | U22: =H7*COS((U$14/180*PI())-ATAN((H7*SIN(U$14/180*PI())/(C7+H7*COS(U$14/180*PI()))))) -> 5.368776599 | V22: =G7*COS((V$14/180*PI())-ATAN((G7*SIN(V$14/180*PI())/(C7+G7*COS(V$14/180*PI()))))) -> 5.5195256 | W22: =F7*COS((D7/180*PI())-ATAN((F7*SIN(D7/180*PI())/(C7+F7*COS(D7/180*PI()))))) -> 5.273813703
D23: 14 | E23: =F8*SIN(D8/180*PI()) -> 4.161774753 | F23: =G8*SIN(G$3/180*PI()) -> 5.487115499 | G23: 6.192038637 | H23: 6.874402428 | I23: 7.540846251 | J23: 7.364110493 | K23: 6.526463164 | L23: 5.168699314 | M23: 3.402003402 | N23: 0 | O23: =-N8*SIN((O$14/180*PI())-ATAN((N8*SIN(O$14/180*PI())/(C8+N8*COS(O$14/180*PI()))))) -> -5.416962933 | P23: =-M8*SIN((P$14/180*PI())-ATAN((M8*SIN(P$14/180*PI())/(C8+M8*COS(P$14/180*PI()))))) -> -7.071650242 | Q23: =-L8*SIN((Q$14/180*PI())-ATAN((L8*SIN(Q$14/180*PI())/(C8+L8*COS(Q$14/180*PI()))))) -> -7.528754011 | R23: =-K8*SIN((R$14/180*PI())-ATAN((K8*SIN(R$14/180*PI())/(C8+K8*COS(R$14/180*PI()))))) -> -7.452732554 | S23: =-J8*SIN((S$14/180*PI())-ATAN((J8*SIN(S$14/180*PI())/(C8+J8*COS(S$14/180*PI()))))) -> -6.639025075 | T23: =-I8*SIN((T$14/180*PI())-ATAN((I8*SIN(T$14/180*PI())/(C8+I8*COS(T$14/180*PI()))))) -> -5.687668925 | U23: =-H8*SIN((U$14/180*PI())-ATAN((H8*SIN(U$14/180*PI())/(C8+H8*COS(U$14/180*PI()))))) -> -4.652202841 | V23: =-G8*SIN((V$14/180*PI())-ATAN((G8*SIN(V$14/180*PI())/(C8+G8*COS(V$14/180*PI()))))) -> -4.023552644 | W23: =-F8*SIN((D8/180*PI())-ATAN((F8*SIN(D8/180*PI())/(C8+F8*COS(D8/180*PI()))))) -> -3.025249625
E24: =E8 -> 4.804484185 | F24: =G8*COS(G$3/180*PI()) -> 4.28700447 | G24: 3.574975174 | H24: 2.502077862 | I24: 4.619328066e-16 | J24: -1.973207459 | K24: -3.768055265 | L24: -5.168699314 | M24: -5.89244274 | N24: =-O8 -> -5.5 | O24: =N8*COS((O$14/180*PI())-ATAN((N8*SIN(O$14/180*PI())/(C8+N8*COS(O$14/180*PI()))))) -> -4.117161786 | P24: =M8*COS((P$14/180*PI())-ATAN((M8*SIN(P$14/180*PI())/(C8+M8*COS(P$14/180*PI()))))) -> -1.85004542 | Q24: =L8*COS((Q$14/180*PI())-ATAN((L8*SIN(Q$14/180*PI())/(C8+L8*COS(Q$14/180*PI()))))) -> 0.332903819 | R24: =K8*COS((R$14/180*PI())-ATAN((K8*SIN(R$14/180*PI())/(C8+K8*COS(R$14/180*PI()))))) -> 1.606377447 | S24: =J8*COS((S$14/180*PI())-ATAN((J8*SIN(S$14/180*PI())/(C8+J8*COS(S$14/180*PI()))))) -> 3.575990524 | T24: =I8*COS((T$14/180*PI())-ATAN((I8*SIN(T$14/180*PI())/(C8+I8*COS(T$14/180*PI()))))) -> 4.600893888 | U24: =H8*COS((U$14/180*PI())-ATAN((H8*SIN(U$14/180*PI())/(C8+H8*COS(U$14/180*PI()))))) -> 5.429438157 | V24: =G8*COS((V$14/180*PI())-ATAN((G8*SIN(V$14/180*PI())/(C8+G8*COS(V$14/180*PI()))))) -> 5.683121321 | W24: =F8*COS((D8/180*PI())-ATAN((F8*SIN(D8/180*PI())/(C8+F8*COS(D8/180*PI()))))) -> 5.590286405
D25: 16 | E25: =F9*SIN(D9/180*PI()) -> 4.14992722 | F25: =G9*SIN(G$3/180*PI()) -> 5.621955436 | G25: 6.341927286 | H25: 7.066833998 | I25: 7.662835249 | J25: 7.706854997 | K25: 6.817606503 | L25: 5.378373996 | M25: 3.552397869 | N25: 0 | O25: =-N9*SIN((O$14/180*PI())-ATAN((N9*SIN(O$14/180*PI())/(C9+N9*COS(O$14/180*PI()))))) -> -5.429596033 | P25: =-M9*SIN((P$14/180*PI())-ATAN((M9*SIN(P$14/180*PI())/(C9+M9*COS(P$14/180*PI()))))) -> -7.227961178 | Q25: =-L9*SIN((Q$14/180*PI())-ATAN((L9*SIN(Q$14/180*PI())/(C9+L9*COS(Q$14/180*PI()))))) -> -7.871959576 | R25: =-K9*SIN((R$14/180*PI())-ATAN((K9*SIN(R$14/180*PI())/(C9+K9*COS(R$14/180*PI()))))) -> -7.870117245 | S25: =-J9*SIN((S$14/180*PI())-ATAN((J9*SIN(S$14/180*PI())/(C9+J9*COS(S$14/180*PI()))))) -> -6.911112448 | T25: =-I9*SIN((T$14/180*PI())-ATAN((I9*SIN(T$14/180*PI())/(C9+I9*COS(T$14/180*PI()))))) -> -6.003149793 | U25: =-H9*SIN((U$14/180*PI())-ATAN((H9*SIN(U$14/180*PI())/(C9+H9*COS(U$14/180*PI()))))) -> -4.91169626 | V25: =-G9*SIN((V$14/180*PI())-ATAN((G9*SIN(V$14/180*PI())/(C9+G9*COS(V$14/180*PI()))))) -> -4.252388834 | W25: =-F9*SIN((D9/180*PI())-ATAN((F9*SIN(D9/180*PI())/(C9+F9*COS(D9/180*PI()))))) -> -3.102059908
E26: =E9 -> 4.998611497 | F26: =G9*COS(G$3/180*PI()) -> 4.392352975 | G26: 3.661513426 | H26: 2.572117226 | I26: 4.694055383e-16 | J26: -2.065045573 | K26: -3.936146949 | L26: -5.378373996 | M26: -6.152933597 | N26: =-O9 -> -6 | O26: =N9*COS((O$14/180*PI())-ATAN((N9*SIN(O$14/180*PI())/(C9+N9*COS(O$14/180*PI()))))) -> -4.58231485 | P26: =M9*COS((P$14/180*PI())-ATAN((M9*SIN(P$14/180*PI())/(C9+M9*COS(P$14/180*PI()))))) -> -2.368626373 | Q26: =L9*COS((Q$14/180*PI())-ATAN((L9*SIN(Q$14/180*PI())/(C9+L9*COS(Q$14/180*PI()))))) -> -0.07255108082 | R26: =K9*COS((R$14/180*PI())-ATAN((K9*SIN(R$14/180*PI())/(C9+K9*COS(R$14/180*PI()))))) -> 1.311976263 | S26: =J9*COS((S$14/180*PI())-ATAN((J9*SIN(S$14/180*PI())/(C9+J9*COS(S$14/180*PI()))))) -> 3.309919755 | T26: =I9*COS((T$14/180*PI())-ATAN((I9*SIN(T$14/180*PI())/(C9+I9*COS(T$14/180*PI()))))) -> 4.529693405 | U26: =H9*COS((U$14/180*PI())-ATAN((H9*SIN(U$14/180*PI())/(C9+H9*COS(U$14/180*PI()))))) -> 5.431570869 | V26: =G9*COS((V$14/180*PI())-ATAN((G9*SIN(V$14/180*PI())/(C9+G9*COS(V$14/180*PI()))))) -> 5.728554511 | W26: =F9*COS((D9/180*PI())-ATAN((F9*SIN(D9/180*PI())/(C9+F9*COS(D9/180*PI()))))) -> 5.708348023
D27: 20 | E27: =F10*SIN(D10/180*PI()) -> 4.187842322 | F27: =G10*SIN(G$3/180*PI()) -> 5.706776731 | G27: 6.47495629 | H27: 7.397536486 | I27: 7.973421927 | J27: 8.23622211 | K27: 7.463948895 | L27: 5.854609964 | M27: 3.783897414 | N27: 0 | O27: =-N10*SIN((O$14/180*PI())-ATAN((N10*SIN(O$14/180*PI())/(C10+N10*COS(O$14/180*PI()))))) -> -5.417807345 | P27: =-M10*SIN((P$14/180*PI())-ATAN((M10*SIN(P$14/180*PI())/(C10+M10*COS(P$14/180*PI()))))) -> -7.64853621 | Q27: =-L10*SIN((Q$14/180*PI())-ATAN((L10*SIN(Q$14/180*PI())/(C10+L10*COS(Q$14/180*PI()))))) -> -8.591345852 | R27: =-K10*SIN((R$14/180*PI())-ATAN((K10*SIN(R$14/180*PI())/(C10+K10*COS(R$14/180*PI()))))) -> -8.492644392 | S27: =-J10*SIN((S$14/180*PI())-ATAN((J10*SIN(S$14/180*PI())/(C10+J10*COS(S$14/180*PI()))))) -> -7.406525529 | T27: =-I10*SIN((T$14/180*PI())-ATAN((I10*SIN(T$14/180*PI())/(C10+I10*COS(T$14/180*PI()))))) -> -6.523581444 | U27: =-H10*SIN((U$14/180*PI())-ATAN((H10*SIN(U$14/180*PI())/(C10+H10*COS(U$14/180*PI()))))) -> -5.263006033 | V27: =-G10*SIN((V$14/180*PI())-ATAN((G10*SIN(V$14/180*PI())/(C10+G10*COS(V$14/180*PI()))))) -> -4.544414676 | W27: =-F10*SIN((D10/180*PI())-ATAN((F10*SIN(D10/180*PI())/(C10+F10*COS(D10/180*PI()))))) -> -3.289318447
E28: =E10 -> 5.116543491 | F28: =G10*COS(G$3/180*PI()) -> 4.458622634 | G28: 3.738317757 | H28: 2.692483088 | I28: 4.884312777e-16 | J28: -2.206889063 | K28: -4.309312904 | L28: -5.854609964 | M28: -6.553902572 | N28: =-O10 -> -6.8 | O28: =N10*COS((O$14/180*PI())-ATAN((N10*SIN(O$14/180*PI())/(C10+N10*COS(O$14/180*PI()))))) -> -5.283832146 | P28: =M10*COS((P$14/180*PI())-ATAN((M10*SIN(P$14/180*PI())/(C10+M10*COS(P$14/180*PI()))))) -> -3.17061658 | Q28: =L10*COS((Q$14/180*PI())-ATAN((L10*SIN(Q$14/180*PI())/(C10+L10*COS(Q$14/180*PI()))))) -> -0.6851914148 | R28: =K10*COS((R$14/180*PI())-ATAN((K10*SIN(R$14/180*PI())/(C10+K10*COS(R$14/180*PI()))))) -> 0.7620401565 | S28: =J10*COS((S$14/180*PI())-ATAN((J10*SIN(S$14/180*PI())/(C10+J10*COS(S$14/180*PI()))))) -> 2.952767653 | T28: =I10*COS((T$14/180*PI())-ATAN((I10*SIN(T$14/180*PI())/(C10+I10*COS(T$14/180*PI()))))) -> 4.406347283 | U28: =H10*COS((U$14/180*PI())-ATAN((H10*SIN(U$14/180*PI())/(C10+H10*COS(U$14/180*PI()))))) -> 5.310446884 | V28: =G10*COS((V$14/180*PI())-ATAN((G10*SIN(V$14/180*PI())/(C10+G10*COS(V$14/180*PI()))))) -> 5.638697696 | W28: =F10*COS((D10/180*PI())-ATAN((F10*SIN(D10/180*PI())/(C10+F10*COS(D10/180*PI()))))) -> 5.735627669

Sheet Detail 1
A2: N° de Voile | G2: GPH:
A3: Nom | G3: TMF:
A4: Type: | G4: DSPL:
A11: VENT REEL | B11: ANGLE OPTIMAL | F11: VITESSE | O11: ANGLE OPTIMAL
B12: UA | C12: VMG | D12: V@UA | E12: 52 | F12: 60 | G12: 75 | H12: 90 | I12: 110 | J12: 120 | K12: 135 | L12: 150 | M12: V@DA | N12: VMG | O12: DA
A13: 6 | B13: =MAIN!D4 -> 44.4 | C13: =MAIN!E4 -> 2.681 | D13: =MAIN!F4 -> 3.751 | E13: =MAIN!G4 -> 4.178 | F13: =MAIN!H4 -> 4.506 | G13: =MAIN!I4 -> 4.753 | H13: =MAIN!J4 -> 5.022 | I13: =MAIN!K4 -> 4.836 | J13: =MAIN!L4 -> 4.396 | K13: =MAIN!M4 -> 3.84 | L13: =MAIN!N4 -> 3.251 | M13: =MAIN!P4 -> 3.424 | N13: =MAIN!O4 -> 2.65 | O13: =MAIN!Q4 -> 145.6
A14: 8 | B14: =MAIN!D5 -> 44.6 | C14: =MAIN!E5 -> 3.334 | D14: =MAIN!F5 -> 4.683 | E14: =MAIN!G5 -> 5.161 | F14: =MAIN!H5 -> 5.448 | G14: =MAIN!I5 -> 5.629 | H14: =MAIN!J5 -> 5.837 | I14: =MAIN!K5 -> 5.736 | J14: =MAIN!L5 -> 5.446 | K14: =MAIN!M5 -> 4.902 | L14: =MAIN!N5 -> 4.157 | M14: =MAIN!P5 -> 4.305 | N14: =MAIN!O5 -> 3.435 | O14: =MAIN!Q5 -> 146.8
A15: 10 | B15: =MAIN!D6 -> 42.1 | C15: =MAIN!E6 -> 4.029550034 | D15: =MAIN!F6 -> 5.430837247 | E15: =MAIN!G6 -> 6.128702758 | F15: =MAIN!H6 -> 6.472491909 | G15: =MAIN!I6 -> 6.734006734 | H15: =MAIN!J6 -> 6.92440854 | I15: =MAIN!K6 -> 6.952491309 | J15: =MAIN!L6 -> 6.836308393 | K15: =MAIN!M6 -> 6.4366172 | L15: =MAIN!N6 -> 5.667506297 | M15: =MAIN!P6 -> 5.85288772 | N15: =MAIN!O6 -> 4.8 | O15: =MAIN!Q6 -> 147
A16: 12 | B16: =MAIN!D7 -> 42.3 | C16: =MAIN!E7 -> 4.438416965 | D16: =MAIN!F7 -> 6.00085231 | E16: =MAIN!G7 -> 6.654343808 | F16: =MAIN!H7 -> 6.895230799 | G16: =MAIN!I7 -> 7.083825266 | H16: =MAIN!J7 -> 7.290400972 | I16: =MAIN!K7 -> 7.30964467 | J16: =MAIN!L7 -> 7.227464365 | K16: =MAIN!M7 -> 6.982156711 | L16: =MAIN!N7 -> 6.353688669 | M16: =MAIN!P7 -> 6.516500411 | N16: =MAIN!O7 -> 5.25 | O16: =MAIN!Q7 -> 147.6
A17: 14 | B17: =MAIN!D8 -> 40.9 | C17: =MAIN!E8 -> 4.804484185 | D17: =MAIN!F8 -> 6.356369827 | E17: =MAIN!G8 -> 6.963249516 | F17: =MAIN!H8 -> 7.149950348 | G17: =MAIN!I8 -> 7.315586263 | H17: =MAIN!J8 -> 7.540846251 | I17: =MAIN!K8 -> 7.623888183 | J17: =MAIN!L8 -> 7.53611053 | K17: =MAIN!M8 -> 7.30964467 | L17: =MAIN!N8 -> 6.804006804 | M17: =MAIN!P8 -> 5.9329098 | N17: =MAIN!O8 -> 5.5 | O17: =MAIN!Q8 -> 174.3
A18: 16 | B18: =MAIN!D9 -> 39.7 | C18: =MAIN!E9 -> 4.998611497 | D18: =MAIN!F9 -> 6.496769415 | E18: =MAIN!G9 -> 7.134363853 | F18: =MAIN!H9 -> 7.323026851 | G18: =MAIN!I9 -> 7.520367662 | H18: =MAIN!J9 -> 7.662835249 | I18: =MAIN!K9 -> 7.978723404 | J18: =MAIN!L9 -> 7.872293899 | K18: =MAIN!M9 -> 7.606169449 | L18: =MAIN!N9 -> 7.104795737 | M18: =MAIN!P9 -> 6.507819727 | N18: =MAIN!O9 -> 6 | O18: =MAIN!Q9 -> 175.9
A19: 20 | B19: =MAIN!D10 -> 39.3 | C19: =MAIN!E10 -> 5.116543491 | D19: =MAIN!F10 -> 6.611886312 | E19: =MAIN!G10 -> 7.242003621 | F19: =MAIN!H10 -> 7.476635514 | G19: =MAIN!I10 -> 7.872293899 | H19: =MAIN!J10 -> 7.973421927 | I19: =MAIN!K10 -> 8.526764567 | J19: =MAIN!L10 -> 8.618625808 | K19: =MAIN!M10 -> 8.279668813 | L19: =MAIN!N10 -> 7.567794829 | M19: =MAIN!P10 -> 7.186996873 | N19: =MAIN!O10 -> 6.8 | O19: =MAIN!Q10 -> 178.4
A20: Snelheden in knopen | D20: UA=Up Angle, VMG=resulterende snelheid recht tegen de wind (bijUA), V@UA=snelheid bij optimale opkruishoek
A21: Hoeken in graden | D21: DA=Down Angle, VMG=resulterende snelheid recht voor de wind (bijDA), V@DA=snelheid bij afkruis opkruishoek
A22: Vent réel | B22: ANGLE OPTIMAL | D22: vitesse du bateau en vent réel / vitesse du vent apparent et l'angle | M22: Optimale afkruis hoek / VMG
B23: UA/VMG | C23: V@UA | D23: 52 | E23: 60 | F23: 75 | G23: 90 | H23: 110 | I23: 120 | J23: 135 | K23: 150 | L23: V@DA | M23: DA/VMG | N23: TWA
A24: 6 | B24: =MAIN!D4 -> 44.4 | C24: =MAIN!F4 -> 3.751 | D24: =MAIN!G4 -> 4.178 | E24: =MAIN!H4 -> 4.506 | F24: =MAIN!I4 -> 4.753 | G24: =MAIN!J4 -> 5.022 | H24: =MAIN!K4 -> 4.836 | I24: =MAIN!L4 -> 4.396 | J24: =MAIN!M4 -> 3.84 | K24: =MAIN!N4 -> 3.251 | L24: =MAIN!P4 -> 3.424 | M24: =MAIN!Q4 -> 145.6 | N24: SPEED
B25: =MAIN!E4 -> 2.681 | C25: =MAIN!S4 -> 9.068067339 | D25: =MAIN!T4 -> 9.182727684 | E25: =MAIN!U4 -> 9.129076405 | F25: =MAIN!V4 -> 8.837333868 | G25: =MAIN!W4 -> 7.824351986 | H25: =MAIN!X4 -> 6.660863996 | I25: =MAIN!Y4 -> 5.380410393 | J25: =MAIN!Z4 -> 4.261703829 | K25: =MAIN!AA4 -> 3.57541857 | L25: =MAIN!AB4 -> 3.717729493 | M25: =MAIN!O4 -> 2.65 | N25: AWS
C26: =MAIN!AD4 -> 27.57704745 | D26: =MAIN!AE4 -> 30.98988337 | E26: =MAIN!AF4 -> 34.69355842 | F26: =MAIN!AG4 -> 39.64231287 | G26: =MAIN!AH4 -> 50.07066797 | H26: =MAIN!AI4 -> 60.46916614 | I26: =MAIN!AJ4 -> 74.96199124 | J26: =MAIN!AK4 -> 95.42132264 | K26: =MAIN!AL4 -> 122.9587356 | L26: =MAIN!AM4 -> 114.2455951 | N26: AWA
A27: 8 | B27: =MAIN!D5 -> 44.6 | C27: =MAIN!F5 -> 4.683 | D27: =MAIN!G5 -> 5.161 | E27: =MAIN!H5 -> 5.448 | F27: =MAIN!I5 -> 5.629 | G27: =MAIN!J5 -> 5.837 | H27: =MAIN!K5 -> 5.736 | I27: =MAIN!L5 -> 5.446 | J27: =MAIN!M5 -> 4.902 | K27: =MAIN!N5 -> 4.157 | L27: =MAIN!P5 -> 4.305 | M27: =MAIN!Q5 -> 146.8 | N27: SPEED
B28: =MAIN!E5 -> 3.334 | C28: =MAIN!S5 -> 11.80174464 | D28: =MAIN!T5 -> 11.89431726 | E28: =MAIN!U5 -> 11.71600205 | F28: =MAIN!V5 -> 11.24674812 | G28: =MAIN!W5 -> 9.903058568 | H28: =MAIN!X5 -> 8.552679072 | I28: =MAIN!Y5 -> 7.077493624 | J28: =MAIN!Z5 -> 5.70699614 | K28: =MAIN!AA5 -> 4.866165569 | L28: =MAIN!AB5 -> 4.989659216 | M28: =MAIN!O5 -> 3.435 | N28: AWS
C29: =MAIN!AD5 -> 28.42223853 | D29: =MAIN!AE5 -> 32.00601086 | E29: =MAIN!AF5 -> 36.25253593 | F29: =MAIN!AG5 -> 41.94516516 | G29: =MAIN!AH5 -> 53.88457488 | H29: =MAIN!AI5 -> 64.62296452 | I29: =MAIN!AJ5 -> 78.21091242 | J29: =MAIN!AK5 -> 97.60068409 | K29: =MAIN!AL5 -> 124.7142484 | L29: =MAIN!AM5 -> 118.6079164 | N29: AWA
A30: 10 | B30: =MAIN!D6 -> 42.1 | C30: =MAIN!F6 -> 5.430837247 | D30: =MAIN!G6 -> 6.128702758 | E30: =MAIN!H6 -> 6.472491909 | F30: =MAIN!I6 -> 6.734006734 | G30: =MAIN!J6 -> 6.92440854 | H30: =MAIN!K6 -> 6.952491309 | I30: =MAIN!L6 -> 6.836308393 | J30: =MAIN!M6 -> 6.4366172 | K30: =MAIN!N6 -> 5.667506297 | L30: =MAIN!P6 -> 5.85288772 | M30: =MAIN!Q6 -> 147 | N30: SPEED
B31: =MAIN!E6 -> 4.029550034 | C31: =MAIN!S6 -> 14.49430902 | D31: =MAIN!T6 -> 14.59538013 | E31: =MAIN!U6 -> 14.37421548 | F31: =MAIN!V6 -> 13.83510628 | G31: =MAIN!W6 -> 12.1633644 | H31: =MAIN!X6 -> 10.59945245 | I31: =MAIN!Y6 -> 8.852797779 | J31: =MAIN!Z6 -> 7.099473754 | K31: =MAIN!AA6 -> 5.827223956 | L31: =MAIN!AB6 -> 6.006946087 | M31: =MAIN!O6 -> 4.8 | N31: AWS
C32: =[1]Main!AD81 -> 28.69640863 | D32: =[1]Main!AE81 -> 32.97986356 | E32: =[1]Main!AF81 -> 37.4168894 | F32: =[1]Main!AG81 -> 46.5236086 | G32: =[1]Main!AH81 -> 56.7408471 | H32: =[1]Main!AI81 -> 71.12177413 | I32: =[1]Main!AJ81 -> 79.92760405 | J32: =[1]Main!AK81 -> 97.23099156 | K32: =[1]Main!AL81 -> 122.4220255 | L32: =MAIN!AM6 -> 114.9492081 | N32: AWA
A33: 12 | B33: =MAIN!D7 -> 42.3 | C33: =MAIN!F7 -> 6.00085231 | D33: =MAIN!G7 -> 6.654343808 | E33: =MAIN!H7 -> 6.895230799 | F33: =MAIN!I7 -> 7.083825266 | G33: =MAIN!J7 -> 7.290400972 | H33: =MAIN!K7 -> 7.30964467 | I33: =MAIN!L7 -> 7.227464365 | J33: =MAIN!M7 -> 6.982156711 | K33: =MAIN!N7 -> 6.353688669 | L33: =MAIN!P7 -> 6.516500411 | M33: =MAIN!Q7 -> 147.6 | N33: SPEED
B34: =MAIN!E7 -> 4.438416965 | C34: =MAIN!S7 -> 16.92726309 | D34: =MAIN!T7 -> 16.92938412 | E34: =MAIN!U7 -> 16.56161156 | F34: =MAIN!V7 -> 15.88483688 | G34: =MAIN!W7 -> 14.04100945 | H34: =MAIN!X7 -> 12.32987831 | I34: =MAIN!Y7 -> 10.46454341 | J34: =MAIN!Z7 -> 8.617388453 | K34: =MAIN!AA7 -> 7.232594321 | L34: =MAIN!AB7 -> 7.376669915 | M34: =MAIN!O7 -> 5.25 | N34: AWS
C35: =MAIN!AD7 -> 28.49675816 | D35: =MAIN!AE7 -> 33.95648373 | E35: =MAIN!AF7 -> 38.86544419 | F35: =MAIN!AG7 -> 45.22506785 | G35: =MAIN!AH7 -> 58.71992092 | H35: =MAIN!AI7 -> 70.06551246 | I35: =MAIN!AJ7 -> 83.26384315 | J35: =MAIN!AK7 -> 100.0454461 | K35: =MAIN!AL7 -> 123.9446033 | L35: =MAIN!AM7 -> 119.3483019 | N35: AWA
A36: 14 | B36: =MAIN!D8 -> 40.9 | C36: =MAIN!F8 -> 6.356369827 | D36: =MAIN!G8 -> 6.963249516 | E36: =MAIN!H8 -> 7.149950348 | F36: =MAIN!I8 -> 7.315586263 | G36: =MAIN!J8 -> 7.540846251 | H36: =MAIN!K8 -> 7.623888183 | I36: =MAIN!L8 -> 7.53611053 | J36: =MAIN!M8 -> 7.30964467 | K36: =MAIN!N8 -> 6.804006804 | L36: =MAIN!P8 -> 5.9329098 | M36: =MAIN!Q8 -> 174.3 | N36: SPEED
B37: =MAIN!E8 -> 4.804484185 | C37: =MAIN!S8 -> 19.25951699 | D37: =MAIN!T8 -> 19.09248462 | E37: =MAIN!U8 -> 18.63386956 | F37: =MAIN!V8 -> 17.87668824 | G37: =MAIN!W8 -> 15.90170941 | H37: =MAIN!X8 -> 14.10226443 | I37: =MAIN!Y8 -> 12.13620264 | J37: =MAIN!Z8 -> 10.23265969 | K37: =MAIN!AA8 -> 8.792389429 | L37: =MAIN!AB8 -> 8.117839633 | M37: =MAIN!O8 -> 5.5 | N37: AWS
C38: =MAIN!AD8 -> 28.42056043 | D38: =MAIN!AE8 -> 35.29784067 | E38: =MAIN!AF8 -> 40.59155195 | F38: =MAIN!AG8 -> 47.38446439 | G38: =MAIN!AH8 -> 61.69167887 | H38: =MAIN!AI8 -> 73.52049909 | I38: =MAIN!AJ8 -> 87.46816443 | J38: =MAIN!AK8 -> 104.6608226 | K38: =MAIN!AL8 -> 127.2366439 | L38: =MAIN!AM8 -> 170.1373716 | N38: AWA
A39: 16 | B39: =[1]Main!D84 -> 40.9 | C39: =MAIN!F9 -> 6.496769415 | D39: =MAIN!G9 -> 7.134363853 | E39: =MAIN!H9 -> 7.323026851 | F39: =MAIN!I9 -> 7.520367662 | G39: =MAIN!J9 -> 7.662835249 | H39: =MAIN!K9 -> 7.978723404 | I39: =MAIN!L9 -> 7.872293899 | J39: =MAIN!M9 -> 7.606169449 | K39: =MAIN!N9 -> 7.104795737 | L39: =MAIN!P9 -> 6.507819727 | M39: =MAIN!Q9 -> 175.9 | N39: SPEED
B40: =[1]Main!E84 -> 4.756242568 | C40: =MAIN!S9 -> 21.40475603 | D40: =MAIN!T9 -> 21.15311898 | E40: =MAIN!U9 -> 20.65902108 | F40: =MAIN!V9 -> 19.87117714 | G40: =MAIN!W9 -> 17.74032255 | H40: =MAIN!X9 -> 15.92415049 | I40: =MAIN!Y9 -> 13.85699494 | J40: =MAIN!Z9 -> 11.90570644 | K40: =MAIN!AA9 -> 10.46824949 | L40: =MAIN!AB9 -> 9.520212387 | M40: =MAIN!O9 -> 6 | N40: AWS
C41: =MAIN!AD9 -> 28.5207696 | D41: =MAIN!AE9 -> 36.58703298 | E41: =MAIN!AF9 -> 42.12261364 | F41: =MAIN!AG9 -> 49.16779361 | G41: =MAIN!AH9 -> 64.40897179 | H41: =MAIN!AI9 -> 76.05480793 | I41: =MAIN!AJ9 -> 90.52804553 | J41: =MAIN!AK9 -> 108.1441381 | K41: =MAIN!AL9 -> 130.1627376 | L41: =MAIN!AM9 -> 173.0986003 | N41: AWA
A42: 20 | B42: =MAIN!D10 -> 39.3 | C42: =MAIN!F10 -> 6.611886312 | D42: =MAIN!G10 -> 7.242003621 | E42: =MAIN!H10 -> 7.476635514 | F42: =MAIN!I10 -> 7.872293899 | G42: =MAIN!J10 -> 7.973421927 | H42: =MAIN!K10 -> 8.526764567 | I42: =MAIN!L10 -> 8.618625808 | J42: =MAIN!M10 -> 8.279668813 | K42: =MAIN!N10 -> 7.567794829 | L42: =MAIN!P10 -> 7.186996873 | M42: =MAIN!Q10 -> 178.4 | N42: SPEED
B43: =MAIN!E10 -> 5.116543491 | C43: =MAIN!S10 -> 25.46328298 | D43: =MAIN!T10 -> 25.11556334 | E43: =MAIN!U10 -> 24.60554386 | F43: =MAIN!V10 -> 23.86780959 | G43: =MAIN!W10 -> 21.53080252 | H43: =MAIN!X10 -> 19.60689041 | I43: =MAIN!Y10 -> 17.37550559 | J43: =MAIN!Z10 -> 15.30909916 | K43: =MAIN!AA10 -> 13.96837198 | L43: =MAIN!AB10 -> 12.81737622 | M43: =MAIN!O10 -> 6.8 | N43: AWS
C44: =MAIN!AD10 -> 29.83378977 | D44: =MAIN!AE10 -> 38.86650025 | E44: =MAIN!AF10 -> 44.74292766 | F44: =MAIN!AG10 -> 51.9445177 | G44: =MAIN!AH10 -> 68.264259 | H44: =MAIN!AI10 -> 80.16113583 | I44: =MAIN!AJ10 -> 94.55989742 | J44: =MAIN!AK10 -> 112.5159139 | K44: =MAIN!AL10 -> 134.2827443 | L44: =MAIN!AM10 -> 177.5029232 | N44: AWA
A45: Snelheden in knopen | D45: UA=Up Angle, VMG=resulterende snelheid recht tegen de wind (bijUA), V@UA=snelheid bij optimale opkruishoek
A46: Hoeken in graden | D46: DA=Down Angle, VMG=resulterende snelheid recht voor de wind (bijDA), V@DA=snelheid bij afkruis opkruishoek

Sheet New polar (hidden)
A1: TWA | B1: 6 | C1: 8 | D1: 10 | E1: 12 | F1: 14 | G1: 16 | H1: 20
A2: 0
A3: 0
A4: 0
A5: 0
A6: 0
A7: 44.4 | B7: 3.751
A8: 44.6 | C8: 4.683
A9: 52 | B9: 4.178 | C9: 5.161 | D9: 0 | E9: 0 | F9: 0 | G9: 0 | H9: 0
A10: 60 | B10: 4.506 | C10: 5.448 | D10: 0 | E10: 0 | F10: 0 | G10: 0 | H10: 0
A11: 75 | B11: 4.753 | C11: 5.629 | D11: 0 | E11: 0 | F11: 0 | G11: 0 | H11: 0
A12: 90 | B12: 5.022 | C12: 5.837 | D12: 0 | E12: 0 | F12: 0 | G12: 0 | H12: 0
A13: 110 | B13: 4.836 | C13: 5.736 | D13: 0 | E13: 0 | F13: 0 | G13: 0 | H13: 0
A14: 135 | B14: 4.396 | C14: 5.446 | D14: 0 | E14: 0 | F14: 0 | G14: 0 | H14: 0
A15: 150 | B15: 3.84 | C15: 4.902 | D15: 0 | E15: 0 | F15: 0 | G15: 0 | H15: 0
A16: 180 | B16: 3.251 | C16: 4.157 | D16: 0 | E16: 0 | F16: 0 | G16: 0 | H16: 0
A21: TWA | B21: 6 | C21: 8 | D21: 10 | E21: 12 | F21: 14 | G21: 16 | H21: 20
A22: =MAIN!D4 -> 44.4 | B22: =IF(ISERROR(INDEX(speed1,MATCH($A22&" "&B$21,angle1&" "&force1,0))),"",INDEX(speed1,MATCH($A22&" "&B$21,angle1&" "&force1,0))) -> 3.751 | C22: =IF(ISERROR(INDEX(speed1,MATCH($A22&" "&C$21,angle1&" "&force1,0))),"",INDEX(speed1,MATCH($A22&" "&C$21,angle1&" "&force1,0))) ->  | D22: =IF(ISERROR(INDEX(speed1,MATCH($A22&" "&D$21,angle1&" "&force1,0))),"",INDEX(speed1,MATCH($A22&" "&D$21,angle1&" "&force1,0))) ->  | E22: =IF(ISERROR(INDEX(speed1,MATCH($A22&" "&E$21,angle1&" "&force1,0))),"",INDEX(speed1,MATCH($A22&" "&E$21,angle1&" "&force1,0))) ->  | F22: =IF(ISERROR(INDEX(speed1,MATCH($A22&" "&F$21,angle1&" "&force1,0))),"",INDEX(speed1,MATCH($A22&" "&F$21,angle1&" "&force1,0))) ->  | G22: =IF(ISERROR(INDEX(speed1,MATCH($A22&" "&G$21,angle1&" "&force1,0))),"",INDEX(speed1,MATCH($A22&" "&G$21,angle1&" "&force1,0))) ->  | H22: =IF(ISERROR(INDEX(speed1,MATCH($A22&" "&H$21,angle1&" "&force1,0))),"",INDEX(speed1,MATCH($A22&" "&H$21,angle1&" "&force1,0))) -> 
A23: =MAIN!D5 -> 44.6 | B23: =IF(ISERROR(INDEX(speed1,MATCH($A23&" "&B$21,angle1&" "&force1,0))),"",INDEX(speed1,MATCH($A23&" "&B$21,angle1&" "&force1,0))) ->  | C23: =IF(ISERROR(INDEX(speed1,MATCH($A23&" "&C$21,angle1&" "&force1,0))),"",INDEX(speed1,MATCH($A23&" "&C$21,angle1&" "&force1,0))) -> 4.683 | D23: =IF(ISERROR(INDEX(speed1,MATCH($A23&" "&D$21,angle1&" "&force1,0))),"",INDEX(speed1,MATCH($A23&" "&D$21,angle1&" "&force1,0))) ->  | E23: =IF(ISERROR(INDEX(speed1,MATCH($A23&" "&E$21,angle1&" "&force1,0))),"",INDEX(speed1,MATCH($A23&" "&E$21,angle1&" "&force1,0))) ->  | F23: =IF(ISERROR(INDEX(speed1,MATCH($A23&" "&F$21,angle1&" "&force1,0))),"",INDEX(speed1,MATCH($A23&" "&F$21,angle1&" "&force1,0))) ->  | G23: =IF(ISERROR(INDEX(speed1,MATCH($A23&" "&G$21,angle1&" "&force1,0))),"",INDEX(speed1,MATCH($A23&" "&G$21,angle1&" "&force1,0))) ->  | H23: =IF(ISERROR(INDEX(speed1,MATCH($A23&" "&H$21,angle1&" "&force1,0))),"",INDEX(speed1,MATCH($A23&" "&H$21,angle1&" "&force1,0))) -> 
A24: =MAIN!D6 -> 42.1 | B24: =IF(ISERROR(INDEX(speed1,MATCH($A24&" "&B$21,angle1&" "&force1,0))),"",INDEX(speed1,MATCH($A24&" "&B$21,angle1&" "&force1,0))) ->  | C24: =IF(ISERROR(INDEX(speed1,MATCH($A24&" "&C$21,angle1&" "&force1,0))),"",INDEX(speed1,MATCH($A24&" "&C$21,angle1&" "&force1,0))) ->  | D24: =IF(ISERROR(INDEX(speed1,MATCH($A24&" "&D$21,angle1&" "&force1,0))),"",INDEX(speed1,MATCH($A24&" "&D$21,angle1&" "&force1,0))) -> 5.430837247 | E24: =IF(ISERROR(INDEX(speed1,MATCH($A24&" "&E$21,angle1&" "&force1,0))),"",INDEX(speed1,MATCH($A24&" "&E$21,angle1&" "&force1,0))) ->  | F24: =IF(ISERROR(INDEX(speed1,MATCH($A24&" "&F$21,angle1&" "&force1,0))),"",INDEX(speed1,MATCH($A24&" "&F$21,angle1&" "&force1,0))) ->  | G24: =IF(ISERROR(INDEX(speed1,MATCH($A24&" "&G$21,angle1&" "&force1,0))),"",INDEX(speed1,MATCH($A24&" "&G$21,angle1&" "&force1,0))) ->  | H24: =IF(ISERROR(INDEX(speed1,MATCH($A24&" "&H$21,angle1&" "&force1,0))),"",INDEX(speed1,MATCH($A24&" "&H$21,angle1&" "&force1,0))) -> 
A25: =MAIN!D7 -> 42.3 | B25: =IF(ISERROR(INDEX(speed1,MATCH($A25&" "&B$21,angle1&" "&force1,0))),"",INDEX(speed1,MATCH($A25&" "&B$21,angle1&" "&force1,0))) ->  | C25: =IF(ISERROR(INDEX(speed1,MATCH($A25&" "&C$21,angle1&" "&force1,0))),"",INDEX(speed1,MATCH($A25&" "&C$21,angle1&" "&force1,0))) ->  | D25: =IF(ISERROR(INDEX(speed1,MATCH($A25&" "&D$21,angle1&" "&force1,0))),"",INDEX(speed1,MATCH($A25&" "&D$21,angle1&" "&force1,0))) ->  | E25: =IF(ISERROR(INDEX(speed1,MATCH($A25&" "&E$21,angle1&" "&force1,0))),"",INDEX(speed1,MATCH($A25&" "&E$21,angle1&" "&force1,0))) -> 6.00085231 | F25: =IF(ISERROR(INDEX(speed1,MATCH($A25&" "&F$21,angle1&" "&force1,0))),"",INDEX(speed1,MATCH($A25&" "&F$21,angle1&" "&force1,0))) ->  | G25: =IF(ISERROR(INDEX(speed1,MATCH($A25&" "&G$21,angle1&" "&force1,0))),"",INDEX(speed1,MATCH($A25&" "&G$21,angle1&" "&force1,0))) ->  | H25: =IF(ISERROR(INDEX(speed1,MATCH($A25&" "&H$21,angle1&" "&force1,0))),"",INDEX(speed1,MATCH($A25&" "&H$21,angle1&" "&force1,0))) -> 
A26: =MAIN!D8 -> 40.9 | B26: =IF(ISERROR(INDEX(speed1,MATCH($A26&" "&B$21,angle1&" "&force1,0))),"",INDEX(speed1,MATCH($A26&" "&B$21,angle1&" "&force1,0))) ->  | C26: =IF(ISERROR(INDEX(speed1,MATCH($A26&" "&C$21,angle1&" "&force1,0))),"",INDEX(speed1,MATCH($A26&" "&C$21,angle1&" "&force1,0))) ->  | D26: =IF(ISERROR(INDEX(speed1,MATCH($A26&" "&D$21,angle1&" "&force1,0))),"",INDEX(speed1,MATCH($A26&" "&D$21,angle1&" "&force1,0))) ->  | E26: =IF(ISERROR(INDEX(speed1,MATCH($A26&" "&E$21,angle1&" "&force1,0))),"",INDEX(speed1,MATCH($A26&" "&E$21,angle1&" "&force1,0))) ->  | F26: =IF(ISERROR(INDEX(speed1,MATCH($A26&" "&F$21,angle1&" "&force1,0))),"",INDEX(speed1,MATCH($A26&" "&F$21,angle1&" "&force1,0))) -> 6.356369827 | G26: =IF(ISERROR(INDEX(speed1,MATCH($A26&" "&G$21,angle1&" "&force1,0))),"",INDEX(speed1,MATCH($A26&" "&G$21,angle1&" "&force1,0))) ->  | H26: =IF(ISERROR(INDEX(speed1,MATCH($A26&" "&H$21,angle1&" "&force1,0))),"",INDEX(speed1,MATCH($A26&" "&H$21,angle1&" "&force1,0))) -> 
A27: =MAIN!D9 -> 39.7 | B27: =IF(ISERROR(INDEX(speed1,MATCH($A27&" "&B$21,angle1&" "&force1,0))),"",INDEX(speed1,MATCH($A27&" "&B$21,angle1&" "&force1,0))) ->  | C27: =IF(ISERROR(INDEX(speed1,MATCH($A27&" "&C$21,angle1&" "&force1,0))),"",INDEX(speed1,MATCH($A27&" "&C$21,angle1&" "&force1,0))) ->  | D27: =IF(ISERROR(INDEX(speed1,MATCH($A27&" "&D$21,angle1&" "&force1,0))),"",INDEX(speed1,MATCH($A27&" "&D$21,angle1&" "&force1,0))) ->  | E27: =IF(ISERROR(INDEX(speed1,MATCH($A27&" "&E$21,angle1&" "&force1,0))),"",INDEX(speed1,MATCH($A27&" "&E$21,angle1&" "&force1,0))) ->  | F27: =IF(ISERROR(INDEX(speed1,MATCH($A27&" "&F$21,angle1&" "&force1,0))),"",INDEX(speed1,MATCH($A27&" "&F$21,angle1&" "&force1,0))) ->  | G27: =IF(ISERROR(INDEX(speed1,MATCH($A27&" "&G$21,angle1&" "&force1,0))),"",INDEX(speed1,MATCH($A27&" "&G$21,angle1&" "&force1,0))) -> 6.496769415 | H27: =IF(ISERROR(INDEX(speed1,MATCH($A27&" "&H$21,angle1&" "&force1,0))),"",INDEX(speed1,MATCH($A27&" "&H$21,angle1&" "&force1,0))) -> 
A28: =MAIN!D10 -> 39.3 | B28: =IF(ISERROR(INDEX(speed1,MATCH($A28&" "&B$21,angle1&" "&force1,0))),"",INDEX(speed1,MATCH($A28&" "&B$21,angle1&" "&force1,0))) ->  | C28: =IF(ISERROR(INDEX(speed1,MATCH($A28&" "&C$21,angle1&" "&force1,0))),"",INDEX(speed1,MATCH($A28&" "&C$21,angle1&" "&force1,0))) ->  | D28: =IF(ISERROR(INDEX(speed1,MATCH($A28&" "&D$21,angle1&" "&force1,0))),"",INDEX(speed1,MATCH($A28&" "&D$21,angle1&" "&force1,0))) ->  | E28: =IF(ISERROR(INDEX(speed1,MATCH($A28&" "&E$21,angle1&" "&force1,0))),"",INDEX(speed1,MATCH($A28&" "&E$21,angle1&" "&force1,0))) ->  | F28: =IF(ISERROR(INDEX(speed1,MATCH($A28&" "&F$21,angle1&" "&force1,0))),"",INDEX(speed1,MATCH($A28&" "&F$21,angle1&" "&force1,0))) ->  | G28: =IF(ISERROR(INDEX(speed1,MATCH($A28&" "&G$21,angle1&" "&force1,0))),"",INDEX(speed1,MATCH($A28&" "&G$21,angle1&" "&force1,0))) ->  | H28: =IF(ISERROR(INDEX(speed1,MATCH($A28&" "&H$21,angle1&" "&force1,0))),"",INDEX(speed1,MATCH($A28&" "&H$21,angle1&" "&force1,0))) -> 6.611886312
A29: 52 | B29: =INDEX(datpol1,2,5) -> 4.178 | C29: =INDEX(datpol1,3,5) -> 5.161 | D29: =INDEX(datpol1,4,5) -> 6.128702758 | E29: =INDEX(datpol1,5,5) -> 6.654343808 | F29: =INDEX(datpol1,6,5) -> 6.963249516 | G29: =INDEX(datpol1,7,5) -> 7.134363853 | H29: =INDEX(datpol1,8,5) -> 7.242003621
A30: 60 | B30: =INDEX(datpol1,2,6) -> 4.506 | C30: =INDEX(datpol1,3,6) -> 5.448 | D30: =INDEX(datpol1,4,6) -> 6.472491909 | E30: =INDEX(datpol1,5,6) -> 6.895230799 | F30: =INDEX(datpol1,6,6) -> 7.149950348 | G30: =INDEX(datpol1,7,6) -> 7.323026851 | H30: =INDEX(datpol1,8,6) -> 7.476635514
A31: 75 | B31: =INDEX(datpol1,2,7) -> 4.753 | C31: =INDEX(datpol1,3,7) -> 5.629 | D31: =INDEX(datpol1,4,7) -> 6.734006734 | E31: =INDEX(datpol1,5,7) -> 7.083825266 | F31: =INDEX(datpol1,6,7) -> 7.315586263 | G31: =INDEX(datpol1,7,7) -> 7.520367662 | H31: =INDEX(datpol1,8,7) -> 7.872293899
A32: 90 | B32: =INDEX(datpol1,2,8) -> 5.022 | C32: =INDEX(datpol1,3,8) -> 5.837 | D32: =INDEX(datpol1,4,8) -> 6.92440854 | E32: =INDEX(datpol1,5,8) -> 7.290400972 | F32: =INDEX(datpol1,6,8) -> 7.540846251 | G32: =INDEX(datpol1,7,8) -> 7.662835249 | H32: =INDEX(datpol1,8,7) -> 7.872293899
A33: 110 | B33: =INDEX(datpol1,2,9) -> 4.836 | C33: =INDEX(datpol1,3,9) -> 5.736 | D33: =INDEX(datpol1,4,9) -> 6.952491309 | E33: =INDEX(datpol1,5,9) -> 7.30964467 | F33: =INDEX(datpol1,6,9) -> 7.623888183 | G33: =INDEX(datpol1,7,9) -> 7.978723404 | H33: =INDEX(datpol1,8,9) -> 8.526764567
A34: 135 | B34: =INDEX(datpol1,2,10) -> 4.396 | C34: =INDEX(datpol1,3,10) -> 5.446 | D34: =INDEX(datpol1,4,10) -> 6.836308393 | E34: =INDEX(datpol1,5,10) -> 7.227464365 | F34: =INDEX(datpol1,6,10) -> 7.53611053 | G34: =INDEX(datpol1,7,10) -> 7.872293899 | H34: =INDEX(datpol1,8,10) -> 8.618625808
A35: 150 | B35: =INDEX(datpol1,2,11) -> 3.84 | C35: =INDEX(datpol1,3,11) -> 4.902 | D35: =INDEX(datpol1,4,11) -> 6.4366172 | E35: =INDEX(datpol1,5,11) -> 6.982156711 | F35: =INDEX(datpol1,6,11) -> 7.30964467 | G35: =INDEX(datpol1,7,11) -> 7.606169449 | H35: =INDEX(datpol1,8,11) -> 8.279668813
A36: 180 | B36: =INDEX(datpol1,2,12) -> 3.251 | C36: =INDEX(datpol1,3,12) -> 4.157 | D36: =INDEX(datpol1,4,12) -> 5.667506297 | E36: =INDEX(datpol1,5,12) -> 6.353688669 | F36: =INDEX(datpol1,6,12) -> 6.804006804 | G36: =INDEX(datpol1,7,12) -> 7.104795737 | H36: =INDEX(datpol1,8,12) -> 7.567794829
